bitfinex/quotes_ETHUSD_20260102
["timestamp","ask_amount","ask_price","bid_price","bid_amount"]
[1767383923807,3.07334277,3123.1,3122.5,0.001]
[1767383923979,0.865168,3123.1,3122.5,0.001]
[1767383924179,0.1705168,3123.0,3122.5,2.29764509]
[1767383925291,2.20817477,3123.4,3122.5,2.29764509]
[1767383926084,3.20174174,3123.3,3122.5,2.29764509]
[1767383926591,3.20174174,3123.3,3122.5,5.50016524]
[1767383926902,3.20158609,3123.5,3122.6,2.29664509]
[1767383927115,0.84,3123.6,3122.6,2.29664509]
[1767383927282,4.82178369,3125.6,3122.8,2.29664509]
[1767383927283,3.20122087,3123.9,3122.8,2.29664509]
[1767383927988,4.04085881,3124.2,3122.8,2.29664509]
[1767383928305,0.84,3124.2,3123.0,2.29664509]
[1767383929009,6.31,3124.7,3123.0,2.29664509]
[1767383929010,6.4008193,3124.6,3123.0,2.29664509]
[1767383929980,6.4008193,3124.6,3123.2,2.29664509]
[1767383930187,2.20817477,3124.4,3123.4,2.29664509]
[1767383930494,2.20817477,3124.2,3123.4,2.29664509]
[1767383931510,2.20817477,3124.2,3123.2,2.29664509]
[1767383932710,5.40909663,3124.1,3123.2,5.49843442]
[1767383933007,8.61001849,3124.1,3123.2,2.29664509]
[1767383933213,0.86100185,3124.0,3123.2,5.49847119]
[1767383933508,0.86100185,3124.0,3123.3,2.29664509]
[1767383934207,3.06917662,3124.0,3123.2,2.29664509]
[1767383934410,3.06917662,3124.0,3123.3,2.29664509]
[1767383935303,6.2703006,3124.0,3123.3,2.29664509]
[1767383935614,0.98713633,3123.9,3123.3,2.29664509]
[1767383935790,0.94712225,3123.9,3123.3,2.29664509]
[1767383938012,4.14828923,3123.9,3123.3,2.29664509]
[1767383938406,2.28135141,3123.8,3122.9,0.001]
[1767383938601,2.32136677,3123.8,3122.9,0.001]
[1767383938797,2.28135141,3123.6,3122.9,0.001]
[1767383939002,2.28135141,3123.4,3122.9,0.001]
[1767383940023,2.3213719,3123.4,3122.9,0.001]
[1767383940320,3.20184426,3123.2,3122.9,0.001]
[1767383940520,6.40368852,3123.2,3122.9,0.001]
[1767383941825,6.40368852,3123.2,3122.5,2.29764509]
[1767383942026,6.40368852,3123.2,3122.3,0.001]
[1767383942027,2.29664508,3122.5,3122.3,2.33878202]
[1767383943430,2.29664508,3122.5,3122.3,0.001]
[1767383944647,2.84654647,3122.5,3122.3,0.001]
[1767383945416,2.29664508,3122.5,3122.3,0.001]
[1767383947212,3.20246299,3122.6,3122.3,0.001]
[1767383947418,5.48360579,3122.8,3122.3,0.001]
[1767383948806,8.68586017,3122.8,3122.3,0.001]
[1767383949027,0.86858602,3122.7,3122.3,0.001]
[1767383949229,3.14993743,3122.7,3122.3,0.001]
[1767383949528,3.14993743,3122.7,3121.9,0.001]
[1767383949529,2.28135141,3122.6,3121.9,0.001]
[1767383950417,2.28304279,3122.4,3121.9,0.001]
[1767383952121,2.32307609,3122.4,3121.9,0.001]
[1767383952324,2.28304279,3122.2,3121.9,0.001]
[1767383952632,3.20297235,3122.1,3121.9,0.001]
[1767383953828,2.28304279,3122.6,3121.9,0.001]
[1767383954030,5.48550227,3122.6,3121.9,2.33878202]
[1767383954616,8.68796175,3122.6,3121.9,0.001]
[1767383954802,3.23583896,3122.5,3121.9,0.001]
[1767383955006,2.28304279,3122.4,3121.9,0.001]
[1767383956724,3.20276719,3122.3,3121.9,0.001]
[1767383957040,5.48574214,3122.4,3121.9,0.001]
[1767383957207,3.20269935,3122.4,3121.9,0.001]
[1767383957410,0.41554955,3122.3,3121.9,2.33878202]
[1767383957677,0.41554955,3122.3,3121.9,0.001]
[1767383958921,3.61833147,3122.3,3121.9,0.001]
[1767383959521,0.41554955,3122.3,3121.9,2.33878202]
[1767383959735,3.2024678,3122.6,3121.9,2.33878202]
[1767383959934,6.4049356,3122.6,3121.9,2.33878202]
[1767383962618,2.28304279,3122.5,3121.9,0.001]
[1767383963911,3.20266461,3122.4,3121.9,0.001]
[1767383964844,8.68837201,3122.4,3121.9,0.001]
[1767383965044,0.8688372,3122.3,3121.9,0.001]
[1767383966415,5.48561302,3122.5,3121.9,0.001]
[1767383966928,0.002,3122.6,3121.9,2.33878202]
[1767383967127,2.28304279,3122.5,3121.9,0.001]
[1767383968422,5.48562647,3122.5,3121.9,0.001]
[1767383968623,0.002,3122.6,3121.9,2.33538462]
[1767383968827,0.002,3122.6,3122.1,2.33438462]
[1767383972463,0.841,3123.1,3122.1,2.33438462]
[1767383972464,2.32034448,3123.5,3122.2,2.48243591]
[1767383972625,5.5219225,3123.5,3122.3,2.48243591]
[1767383972827,6.40315604,3123.5,3122.3,2.48243591]
[1767383973035,0.002,3122.6,3122.5,2.48243591]
[1767383973236,6.40315604,3123.5,3122.6,2.48243591]
[1767383974040,3.20157802,3123.5,3122.6,2.48243591]
[1767383974239,0.95663835,3123.4,3122.6,2.48243591]
[1767383975952,0.95663835,3123.4,3122.7,2.48243591]
[1767383976133,4.04447859,3123.6,3122.7,2.48243591]
[1767383977043,0.843,3123.6,3122.7,2.48243591]
[1767383977457,4.04444874,3123.6,3122.7,2.48243591]
[1767383977959,4.04444874,3123.6,3122.8,2.48243591]
[1767383978155,5.00106216,3123.6,3122.8,2.48243591]
[1767383978340,1.79961342,3123.6,3122.8,2.48243591]
[1767383978740,5.00105374,3123.6,3122.8,2.48243591]
[1767383979035,1.79961342,3123.6,3122.8,2.48243591]
[1767383979367,0.002,3123.9,3123.3,2.48243591]
[1767383979531,0.002,3124.2,3123.4,2.48243591]
[1767383980176,0.002,3123.6,3123.5,2.48243591]
[1767383980355,0.002,3123.6,3123.4,3.2015569]
[1767383980356,0.002,3124.2,3123.6,2.48243591]
[1767383980567,3.20040965,3124.6,3123.9,2.48243591]
[1767383980750,0.63607541,3124.5,3123.9,2.48243591]
[1767383982668,3.20043811,3124.6,3123.9,2.48243591]
[1767383984031,8.7212207,3124.6,3123.9,2.48243591]
[1767383985255,5.52078259,3124.6,3123.9,2.48243591]
[1767383985451,2.32034448,3124.5,3123.9,2.48243591]
[1767383988451,0.002,3124.6,3123.9,2.48243591]
[1767383988651,0.002,3124.9,3124.5,2.48243591]
[1767383988958,0.002,3124.9,3124.5,2.46283076]
[1767383989255,0.002,3124.9,3124.0,3.88009279]
[1767383989256,0.002,3124.9,3124.1,2.48243591]
[1767383989968,0.002,3124.9,3124.2,2.48243591]
[1767383991367,0.002,3124.9,3124.3,2.48243591]
[1767383995290,2.32034448,3124.8,3123.5,2.48243591]
[1767383995450,2.32034448,3124.8,3123.7,2.48243591]
[1767383995767,2.32034448,3124.8,3123.9,3.20111677]
[1767383995946,2.32034448,3124.8,3123.8,2.48243591]
[1767383996285,2.32034448,3124.5,3123.5,2.48243591]
[1767383996465,2.32034448,3124.3,3123.5,2.48243591]
[1767383996670,2.32034448,3124.1,3123.3,2.48243591]
[1767383996869,2.32034448,3124.1,3123.3,5.68417761]
[1767383997068,3.16034448,3124.3,3123.4,2.48243591]
[1767383998064,2.32034448,3124.2,3123.4,2.48243591]
[1767383998272,0.31603445,3124.1,3123.4,2.48243591]
[1767383998791,0.31603445,3124.1,3123.5,3.20153673]
[1767383999158,0.31603445,3124.1,3123.5,5.68397264]
[1767383999389,0.84,3124.3,3123.6,2.34677303]
[1767384000070,6.15536919,3124.4,3123.6,2.34677303]
[1767384000071,0.55208534,3124.4,3123.7,2.34677303]
[1767384000391,6.44298289,3124.7,3123.7,2.34677303]
[1767384000596,6.44298289,3124.7,3123.5,6.40307346]
[1767384000597,2.40261825,3124.6,3123.5,6.40307346]
[1767384000954,2.40261825,3124.5,3123.6,2.34677303]
[1767384001152,3.20020481,3124.8,3123.7,2.34677303]
[1767384001381,5.60282306,3124.8,3123.7,2.34677303]
[1767384001658,0.58372575,3124.7,3123.8,2.34677303]
[1767384001857,0.23443445,3124.9,3123.8,2.34677303]
[1767384002058,0.23443445,3124.9,3124.0,2.34677303]
[1767384002263,0.002,3124.9,3124.3,2.34677303]
[1767384002671,0.002,3124.9,3124.4,2.34677303]
[1767384003263,0.002,3124.9,3124.5,2.34677303]
[1767384003464,0.002,3125.1,3124.7,2.34677303]
[1767384004686,0.002,3125.7,3125.1,3.19983867]
[1767384004860,0.002,3125.7,3125.2,2.34677303]
[1767384006265,0.002,3125.7,3124.9,2.34677303]
[1767384006585,0.002,3125.7,3123.8,3.37]
[1767384006586,2.40261825,3125.4,3124.2,2.34677303]
[1767384006889,2.40261825,3125.4,3123.9,2.34677303]
[1767384006890,2.40261825,3124.9,3123.9,2.34677303]
[1767384007060,2.44262081,3124.8,3124.0,3.43570047]
[1767384007258,0.84,3125.2,3124.0,3.43570047]
[1767384007259,0.84,3125.2,3124.2,5.54758664]
[1767384007473,2.40261825,3125.1,3124.2,2.34677303]
[1767384007706,7.27966914,3125.2,3123.6,2.34677303]
[1767384007707,2.40261825,3124.8,3123.6,2.34677303]
[1767384007859,2.40261825,3124.8,3123.8,3.20115717]
[1767384008068,3.03044498,3124.7,3123.8,5.54794434]
[1767384008286,2.40261825,3124.7,3123.8,5.54794434]
[1767384008793,2.40261825,3124.7,3123.9,3.20109233]
[1767384008991,5.60293308,3124.7,3123.9,3.20109233]
[1767384009194,5.60293308,3124.7,3123.8,5.54795431]
[1767384009596,5.60293308,3124.7,3124.3,0.001]
[1767384009773,0.56029331,3124.6,3124.3,0.001]
[1767384010092,5.60264977,3125.0,3124.3,0.001]
[1767384011199,2.40261825,3125.0,3124.3,0.001]
[1767384011499,3.19994028,3125.1,3124.3,2.34777303]
[1767384012080,6.39988056,3125.1,3124.3,2.34777303]
[1767384012602,6.39988056,3125.1,3123.9,4.04110815]
[1767384012603,2.44261825,3125.0,3123.9,0.84]
[1767384012899,2.44261825,3125.0,3123.6,3.20143371]
[1767384012900,2.40261825,3124.9,3123.6,4.04136403]
[1767384013095,2.40261825,3124.7,3123.5,2.34777303]
[1767384013298,2.40261825,3124.7,3123.5,3.18777303]
[1767384013500,2.40261825,3124.5,3123.6,3.20143424]
[1767384013697,2.40261825,3124.5,3123.5,5.86804911]
[1767384013883,2.44262465,3124.5,3123.5,2.66655033]
[1767384014092,2.44262465,3124.5,3123.5,5.86807089]
[1767384014685,2.44262465,3124.5,3123.5,3.20252056]
[1767384015015,2.44262465,3124.5,3123.5,0.001]
[1767384015521,3.20061451,3124.4,3123.5,2.34777303]
[1767384016906,3.44467173,3124.6,3123.5,2.34777303]
[1767384017096,0.42846717,3124.5,3123.5,2.34777303]
[1767384017292,2.44262593,3124.4,3123.5,2.34777303]
[1767384017495,2.40261825,3124.4,3123.5,2.34777303]
[1767384017815,2.40261825,3124.2,3123.5,0.001]
[1767384018178,3.20061718,3124.4,3123.5,5.54925205]
[1767384018378,0.60317026,3124.3,3123.5,5.54925205]
[1767384018809,2.40261825,3124.2,3123.5,0.001]
[1767384019776,2.40261825,3124.1,3123.5,0.001]
[1767384020904,3.20073146,3124.3,3123.5,0.001]
[1767384021112,5.60334971,3124.3,3123.5,0.001]
[1767384021277,2.83108542,3124.5,3123.5,2.34777303]
[1767384021475,3.20051923,3124.5,3123.5,2.34777303]
[1767384021703,8.80365671,3124.5,3123.5,2.34777303]
[1767384021908,5.60313748,3124.5,3123.5,5.54930148]
[1767384023294,2.40261825,3124.5,3123.6,2.34677303]
[1767384023608,2.98735129,3124.5,3123.6,2.34677303]
[1767384023813,8.80364641,3124.5,3123.6,2.34677303]
[1767384024109,2.44262593,3124.4,3123.5,0.001]
[1767384024409,2.44262593,3124.4,3123.5,5.54922692]
[1767384024598,2.40261825,3124.4,3123.6,5.54819265]
[1767384024798,9.04777189,3124.6,3123.7,2.34677303]
[1767384024999,0.90477719,3124.5,3123.7,2.34677303]
[1767384025227,3.30739544,3124.5,3123.7,2.34677303]
[1767384025779,2.40261825,3124.3,3123.5,0.001]
[1767384026010,3.20061451,3124.4,3123.5,0.001]
[1767384026011,2.40261825,3124.2,3123.5,0.001]
[1767384026412,2.40261825,3124.0,3123.5,0.001]
[1767384026584,0.04001408,3123.9,3123.5,0.001]
[1767384027625,0.24426298,3124.0,3123.5,2.43572481]
[1767384027806,2.49084368,3124.0,3123.5,0.001]
[1767384029083,3.20085065,3124.2,3123.5,0.001]
[1767384029490,0.84,3124.3,3123.5,2.37209126]
[1767384029711,1.33474649,3124.3,3123.5,2.37209126]
[1767384029915,1.33474649,3124.3,3123.6,2.37109126]
[1767384030220,2.35833442,3124.2,3123.5,0.001]
[1767384030391,2.35833442,3124.0,3123.0,0.001]
[1767384030586,2.35833442,3123.8,3123.0,3.20303586]
[1767384030787,2.35833442,3123.8,3123.0,0.001]
[1767384032635,5.55957355,3123.8,3123.0,0.001]
[1767384033533,2.35833442,3123.8,3123.0,0.001]
[1767384033696,2.35833442,3123.8,3123.0,2.37209126]
[1767384034034,0.002,3124.5,3123.2,2.37109126]
[1767384034392,0.002,3124.5,3123.4,2.37109126]
[1767384035294,0.002,3124.5,3123.6,2.37109126]
[1767384035496,0.002,3124.5,3123.6,3.21109126]
[1767384035717,0.002,3124.5,3123.6,3.53220039]
[1767384036293,0.002,3124.5,3123.7,2.37109126]
[1767384036490,0.002,3124.5,3123.6,0.32110913]
[1767384036698,2.40034082,3124.5,3123.6,3.20139602]
[1767384037697,5.60089758,3124.5,3123.6,3.20139602]
[1767384037897,5.56089118,3124.5,3123.6,3.20139602]
[1767384039396,2.36033442,3124.5,3123.6,3.20139602]
[1767384039719,2.36033442,3124.5,3123.6,5.57248728]
[1767384039921,2.36033442,3124.5,3123.0,5.5740927]
[1767384039922,2.35833442,3124.3,3123.0,5.5740927]
[1767384040116,2.35833442,3124.1,3123.0,2.37209126]
[1767384040298,2.35833442,3124.1,3123.1,3.20188677]
[1767384040628,2.35833442,3124.1,3123.2,5.57288731]
[1767384040814,0.23583344,3124.0,3123.2,2.37109126]
[1767384041124,2.3983485,3123.9,3123.0,0.001]
[1767384041328,2.35833442,3123.8,3123.0,0.001]
[1767384041532,2.35833442,3123.6,3123.0,0.001]
[1767384042116,2.35833442,3123.5,3123.0,0.001]
[1767384042627,2.35833442,3123.3,3122.5,0.001]
[1767384042804,0.31983344,3123.2,3122.5,3.20350096]
[1767384043003,0.31983344,3123.2,3122.6,3.20243541]
[1767384043203,0.31983344,3123.2,3122.5,3.20352177]
[1767384043427,0.31983344,3123.2,3123.0,0.001]
[1767384043628,0.84,3123.4,3123.0,0.001]
[1767384043924,2.35833442,3123.3,3123.0,0.001]
[1767384045931,2.35833442,3123.3,3122.5,0.001]
[1767384046128,7.243316,3123.4,3122.5,0.001]
[1767384046129,2.35833442,3123.1,3122.5,0.001]
[1767384046330,0.55601787,3123.0,3122.5,0.001]
[1767384047814,2.91435229,3123.0,3122.5,0.001]
[1767384048217,5.56048626,3122.9,3122.5,0.001]
[1767384048411,2.35833442,3122.9,3122.5,0.001]
[1767384049033,0.55601787,3123.0,3122.5,0.001]
[1767384049234,2.35833442,3123.2,3122.5,0.001]
[1767384049235,6.40018941,3123.2,3122.5,0.001]
[1767384049437,9.6020444,3123.2,3122.5,0.001]
[1767384049635,6.40018941,3123.2,3122.5,0.001]
[1767384050238,5.56018941,3123.2,3122.5,0.001]
[1767384050434,2.35833442,3123.6,3122.5,2.37209126]
[1767384050638,0.55596662,3123.5,3122.5,2.37209126]
[1767384051238,2.35833442,3123.4,3122.5,0.001]
[1767384052021,2.35833442,3123.4,3122.5,2.37209126]
[1767384052360,5.56007616,3123.3,3122.5,2.37209126]
[1767384053745,5.55847529,3123.3,3122.5,2.37209126]
[1767384053946,0.87601258,3123.2,3122.5,2.37209126]
[1767384054554,4.0779278,3123.2,3122.5,2.37209126]
[1767384055554,9.63817744,3123.2,3122.5,2.37209126]
[1767384056153,2.39835875,3123.1,3122.2,2.37209126]
[1767384056566,5.56038373,3123.0,3122.2,2.37209126]
[1767384056771,2.35833442,3122.8,3122.2,0.001]
[1767384057051,2.35833442,3122.6,3122.2,0.001]
[1767384057638,2.35833442,3122.6,3122.5,0.001]
[1767384057841,2.35833442,3122.6,3122.2,0.001]
[1767384058039,2.63820283,3122.5,3122.2,0.001]
[1767384058443,0.23983639,3122.5,3122.2,0.001]
[1767384058642,3.20235693,3122.7,3122.2,0.001]
[1767384058846,5.56069135,3122.7,3122.2,0.001]
[1767384060368,8.76304828,3122.7,3122.2,0.001]
[1767384062230,3.20235693,3122.7,3122.2,0.001]
[1767384063055,6.40471386,3122.7,3122.2,0.001]
[1767384063356,0.72447139,3122.6,3122.2,0.001]
[1767384064156,3.92693469,3122.6,3122.2,0.001]
[1767384064747,7.12939799,3122.6,3122.2,0.001]
[1767384065658,3.92693469,3122.6,3122.2,0.001]
[1767384065831,0.72447139,3122.6,3122.2,0.001]
[1767384066033,4.04228138,3122.8,3122.2,2.41315489]
[1767384066247,9.74276617,3122.8,3122.2,0.001]
[1767384066442,2.53823287,3122.7,3122.2,0.001]
[1767384067358,2.53823287,3122.7,3121.9,0.001]
[1767384067536,2.53823287,3122.7,3121.6,2.41315489]
[1767384067537,2.53823287,3122.7,3121.6,0.001]
[1767384067742,2.49820341,3122.5,3121.6,0.001]
[1767384067955,4.11693925,3122.6,3121.6,2.41315489]
[1767384068152,3.20256204,3122.5,3121.6,2.41315489]
[1767384068358,1.61873584,3122.6,3121.7,2.41215489]
[1767384068535,3.20235693,3122.7,3121.7,2.41215489]
[1767384069261,0.34904951,3123.7,3121.7,2.41215489]
[1767384069262,2.50020341,3123.4,3121.7,2.41215489]
[1767384069568,8.94186938,3123.3,3121.7,2.41215489]
[1767384069729,8.90184761,3123.3,3121.7,2.41215489]
[1767384069930,0.97438476,3123.2,3121.9,2.41215489]
[1767384070157,3.20194678,3123.1,3122.1,2.41215489]
[1767384070462,0.842,3123.4,3122.2,2.41215489]
[1767384070463,0.002,3123.4,3122.2,2.41215489]
[1767384070633,3.20089049,3124.2,3122.2,2.41215489]
[1767384070835,3.20089049,3124.2,3122.1,12.81185093]
[1767384070836,0.002,3124.5,3122.4,2.41215489]
[1767384071145,0.002,3124.5,3122.3,1.52240058]
[1767384071146,0.002,3124.5,3122.6,2.41215489]
[1767384071346,3.20251666,3124.5,3122.6,2.41215489]
[1767384071547,3.20251666,3124.5,3122.3,1.52240058]
[1767384071548,2.53821109,3124.4,3122.8,2.41215489]
[1767384071748,0.89412444,3124.3,3123.0,2.41215489]
[1767384072339,4.09494298,3124.3,3123.2,2.41215489]
[1767384072539,4.09494298,3124.3,3123.3,2.41215489]
[1767384072869,0.002,3123.4,3123.3,2.41215489]
[1767384075052,0.89412444,3124.3,3123.4,2.41215489]
[1767384075266,0.002,3124.7,3124.4,2.41215489]
[1767384075457,3.19959045,3125.4,3124.4,2.39355037]
[1767384076334,6.3991809,3125.4,3124.4,2.39355037]
[1767384077671,0.03999616,3125.3,3124.4,2.39355037]
[1767384077838,0.89373805,3125.2,3124.4,2.39355037]
[1767384078252,0.89373805,3125.2,3124.0,2.41215489]
[1767384078548,3.1998976,3125.1,3124.1,2.41215489]
[1767384079064,7.29351141,3125.2,3124.1,2.41215489]
[1767384079864,4.09362473,3125.2,3124.1,2.41215489]
[1767384080063,0.72933315,3125.1,3124.1,2.41215489]
[1767384081473,3.2,3125.0,3124.1,2.41215489]
[1767384082245,3.2,3125.0,3124.1,5.61305494]
[1767384082969,3.2,3125.0,3124.2,2.41215489]
[1767384083572,3.92927563,3125.1,3124.2,2.41215489]
[1767384084344,0.002,3125.2,3124.3,2.41215489]
[1767384084547,0.002,3125.2,3124.5,2.41215489]
[1767384084844,0.842,3125.7,3125.1,2.41215489]
[1767384085048,0.002,3125.7,3125.1,2.41215489]
[1767384087769,2.35096512,3125.7,3124.7,2.33035455]
[1767384087956,2.35096512,3125.7,3124.4,3.17035455]
[1767384087957,2.30897408,3125.5,3124.4,3.17035455]
[1767384088357,2.34896768,3125.5,3124.4,2.33035455]
[1767384088777,2.30897408,3125.4,3124.4,2.33035455]
[1767384088982,2.34896896,3125.4,3124.4,2.33035455]
[1767384089498,2.34896896,3125.4,3124.2,3.20080287]
[1767384089799,2.34896896,3125.4,3124.1,2.44869726]
[1767384089800,5.58283542,3125.2,3124.1,2.44869726]
[1767384090184,2.38297905,3125.1,3124.1,2.44869726]
[1767384090884,2.38297905,3125.1,3124.1,5.64961705]
[1767384091174,2.38297905,3125.1,3124.1,2.44869726]
[1767384091379,0.87826918,3125.0,3124.1,2.44869726]
[1767384091767,4.0783131,3125.0,3124.1,2.44869726]
[1767384092901,0.87826918,3125.0,3124.1,2.44869726]
[1767384093268,4.07827518,3125.0,3124.1,2.44869726]
[1767384093466,0.87826918,3125.0,3124.1,2.44869726]
[1767384093669,0.002,3125.7,3124.2,2.44869726]
[1767384093877,0.002,3125.7,3124.4,2.44869726]
[1767384095096,0.002,3125.7,3125.0,2.44869726]
[1767384096078,0.002,3125.7,3125.0,5.6486581]
[1767384097195,0.002,3125.7,3125.0,2.44869726]
[1767384098198,2.38497905,3125.7,3124.2,2.44869726]
[1767384098400,2.38497905,3125.7,3124.6,3.20038847]
[1767384099401,2.38497905,3125.7,3124.7,3.20028317]
[1767384099601,2.38497905,3125.7,3124.6,3.20035211]
[1767384102103,2.38297905,3125.0,3124.0,3.2019634]
[1767384102802,3.2001024,3124.9,3124.0,3.2019634]
[1767384103396,3.2001024,3124.9,3124.0,0.001]
[1767384104202,5.58308145,3124.9,3124.0,0.001]
[1767384104386,0.87830841,3124.8,3124.0,0.001]
[1767384105482,4.07852694,3124.8,3124.0,0.001]
[1767384105683,0.87830841,3124.8,3124.0,2.44969726]
[1767384106006,3.1999316,3125.1,3124.0,2.44969726]
[1767384106392,0.04,3125.0,3124.0,2.44969726]
[1767384106577,3.1999316,3125.1,3124.0,2.44969726]
[1767384107409,3.1999316,3125.1,3124.2,2.44869726]
[1767384107716,4.16239426,3125.1,3124.2,2.44869726]
[1767384108003,0.96246266,3125.1,3124.2,2.44869726]
[1767384108206,0.002,3125.2,3124.3,2.44869726]
[1767384108373,0.002,3125.7,3125.0,2.44869726]
[1767384109297,0.002,3125.8,3125.4,2.44869726]
[1767384109499,0.002,3125.8,3125.4,2.69356699]
[1767384109807,0.002,3125.8,3125.1,2.44869726]
[1767384110112,0.002,3125.8,3125.1,5.64858977]
[1767384110993,0.002,3125.8,3125.1,2.44869726]
[1767384111807,0.002,3125.7,3125.1,3.28869726]
[1767384112010,2.38497905,3125.7,3124.7,2.44869726]
[1767384112202,2.38497905,3125.7,3124.5,2.44869726]
[1767384112203,2.62167696,3125.6,3124.5,2.44869726]
[1767384112614,2.62167696,3125.6,3124.7,3.20025056]
[1767384112815,2.62167696,3125.6,3124.7,5.64894782]
[1767384113304,2.62167696,3125.6,3124.7,2.44869726]
[1767384113506,2.62167696,3125.6,3124.7,5.64895808]
[1767384113811,5.82106829,3125.6,3124.7,3.33362463]
[1767384114706,2.42297265,3125.5,3124.2,2.44869726]
[1767384114910,2.42297265,3125.5,3124.1,3.20189336]
[1767384114911,2.38297905,3125.3,3124.1,3.20189336]
[1767384115110,2.38297905,3125.3,3124.2,3.20080801]
[1767384115407,2.70527696,3125.2,3124.2,3.20079916]
[1767384115815,2.70527696,3125.2,3124.1,8.85154098]
[1767384116015,5.90507915,3125.2,3124.2,2.44869726]
[1767384118028,2.38297905,3125.0,3124.1,0.001]
[1767384118326,0.24229778,3124.9,3124.1,5.65054653]
[1767384118522,0.32229791,3125.2,3124.3,2.44869726]
[1767384119610,3.19948808,3125.5,3124.3,2.44869726]
[1767384119994,2.69419268,3125.6,3124.5,2.31619317]
[1767384121436,2.69419268,3125.6,3124.2,2.31619317]
[1767384121437,2.734185,3125.6,3124.2,2.31619317]
[1767384121727,2.734185,3125.6,3124.2,3.20079364]
[1767384121903,2.45549477,3125.4,3124.2,3.20079364]
[1767384122231,2.45549477,3125.2,3124.1,5.51806575]
[1767384122708,2.45549477,3125.2,3124.1,6.35806575]
[1767384122899,2.45549477,3125.2,3124.1,9.55898761]
[1767384123706,2.45549477,3125.2,3124.1,6.35806575]
[1767384123906,3.34098281,3125.1,3124.1,6.35806575]
[1767384124633,6.54097801,3125.1,3124.1,6.35806575]
[1767384126114,2.45549477,3125.0,3124.1,0.001]
[1767384126908,2.45549477,3124.8,3123.5,2.31619317]
[1767384127108,2.45549477,3124.6,3123.5,5.51767639]
[1767384127411,2.45549477,3124.6,3123.6,3.20140904]
[1767384127610,2.45549477,3124.6,3123.5,2.31619317]
[1767384127611,0.88957009,3124.7,3124.0,2.31619317]
[1767384127824,4.04005154,3125.0,3124.0,2.29748866]
[1767384128111,9.69559785,3125.0,3124.0,2.29748866]
[1767384128314,2.45549477,3124.9,3124.0,2.29748866]
[1767384129131,5.65567485,3124.9,3124.0,2.29748866]
[1767384129335,5.65567485,3124.9,3124.0,5.49850463]
[1767384129518,0.64956748,3124.8,3124.0,5.49850463]
[1767384130013,0.64956748,3124.8,3124.0,2.29748866]
[1767384131144,0.64956748,3124.8,3124.0,5.49846769]
[1767384131622,0.64956748,3124.8,3124.1,2.31619317]
[1767384131829,5.65563975,3124.9,3124.1,2.31619317]
[1767384132160,2.45549477,3124.8,3123.8,2.31619317]
[1767384132328,2.49549733,3124.8,3123.5,5.51766543]
[1767384132645,2.45549477,3124.6,3123.5,5.51771133]
[1767384132868,2.45549477,3124.4,3123.5,5.51771133]
[1767384133148,2.45549477,3124.4,3124.0,0.001]
[1767384133512,2.45549477,3124.3,3124.0,0.001]
[1767384135324,3.53006398,3124.5,3124.0,0.001]
[1767384136373,0.32954948,3124.5,3124.0,2.31719317]
[1767384136534,3.2020567,3125.0,3124.0,2.31719317]
[1767384136856,2.45549477,3124.9,3124.0,0.001]
[1767384137359,2.45549477,3124.7,3124.0,0.001]
[1767384137665,2.45549477,3124.5,3124.0,0.001]
[1767384138539,3.20061451,3124.4,3124.0,0.001]
[1767384138924,8.85672379,3124.4,3124.0,0.001]
[1767384139127,2.45549477,3124.3,3123.1,5.51806615]
[1767384139346,2.45549477,3124.3,3123.1,2.31619317]
[1767384139558,2.45549477,3124.1,3123.1,2.31619317]
[1767384140868,5.65651909,3124.0,3122.9,5.5193084]
[1767384141560,8.85754341,3124.0,3122.9,2.31719317]
[1767384141782,2.45549477,3123.9,3122.9,2.31719317]
[1767384141948,0.88575434,3123.8,3122.9,2.31719317]
[1767384142140,0.88575434,3123.8,3122.9,5.51934169]
[1767384142479,0.88575434,3123.8,3122.9,2.31719317]
[1767384142641,3.20133175,3123.7,3122.9,2.31719317]
[1767384144181,4.08703631,3123.8,3122.9,5.51933858]
[1767384144384,4.08703631,3123.8,3122.9,2.31719317]
[1767384144385,0.65425311,3123.7,3122.9,2.31719317]
[1767384144777,3.85558889,3123.7,3122.9,2.31719317]
[1767384145286,9.51241944,3123.7,3122.9,2.31719317]
[1767384146146,9.51241944,3123.7,3122.9,0.001]
[1767384146345,2.45549477,3123.6,3122.9,0.001]
[1767384146672,0.34260952,3123.5,3122.9,0.001]
[1767384147556,3.54414895,3123.5,3122.9,0.001]
[1767384148261,2.32299362,3123.4,3122.9,0.001]
[1767384148872,3.54414895,3123.5,3122.9,0.001]
[1767384149872,5.83659546,3123.5,3122.9,0.001]
[1767384150057,0.98780421,3123.4,3122.9,0.001]
[1767384150756,2.29244651,3123.8,3122.9,2.3540865]
[1767384150949,3.20112679,3123.9,3122.9,2.3540865]
[1767384151768,6.40225358,3123.9,3122.9,2.3540865]
[1767384151969,8.69470009,3123.9,3122.9,2.3540865]
[1767384152144,0.95367001,3123.8,3122.9,2.3540865]
[1767384152341,2.29244651,3123.7,3122.9,0.001]
[1767384154185,2.29244651,3123.5,3122.9,0.001]
[1767384154880,0.04002049,3123.4,3122.9,0.001]
[1767384155181,2.29244651,3123.5,3122.9,0.001]
[1767384155355,3.16197801,3123.5,3122.9,0.001]
[1767384156146,0.95367001,3123.8,3122.9,2.3540865]
[1767384156345,0.84,3123.9,3122.9,2.3540865]
[1767384156683,3.20307416,3124.0,3122.9,2.3540865]
[1767384157061,0.08952695,3123.4,3122.7,0.001]
[1767384157290,6.34185346,3123.9,3122.0,0.001]
[1767384157291,2.29244651,3123.2,3122.0,0.001]
[1767384157496,2.29244651,3123.0,3122.0,0.001]
[1767384158186,2.29244651,3122.8,3122.0,0.001]
[1767384158354,2.29244651,3122.7,3122.0,0.001]
[1767384160171,2.29244651,3122.5,3122.0,0.001]
[1767384162278,3.20266461,3122.4,3122.0,0.001]
[1767384162588,0.54951111,3122.3,3122.0,0.001]
[1767384163658,3.20237212,3122.7,3122.0,0.001]
[1767384164058,6.4047844,3122.7,3122.0,0.001]
[1767384164371,3.20237212,3122.7,3122.0,0.001]
[1767384164670,6.4047844,3122.7,3122.0,0.001]
[1767384164879,3.01692495,3122.6,3122.0,0.001]
[1767384165079,2.29244651,3122.5,3122.0,0.001]
[1767384166086,0.72447844,3122.6,3122.0,0.001]
[1767384166584,3.92697096,3122.6,3122.0,0.001]
[1767384166792,0.04003202,3122.5,3122.0,0.001]